Workbook

Sheet 农机员
A1: 唐山高新区老庄子镇2024年1--6月年满60周岁农机员生活补助公示表
A2: 序号 | B2: 姓名 | C2: 原工作单位 | D2: 性别 | E2: 户口所在地（镇办、村） | F2: 公益服务认定时间 | G2: 公益服务认定年限 | H2: 月补助金额（元） | I2: 补贴月数（个） | J2: 补助总金额（元） | K2: 补助时间段（月） | L2: 备注 | X2: 农机去掉2人工作不满三年
A3: 1 | B3: 张子艳 | C3: 老庄子公社农机站 | D3: 男 | E3: 老庄子镇沙雾庄村 | F3: 73.4--83.5 | G3: 11 | H3: =G3*20 -> 220 | I3: 6 | J3: =H3*I3 -> 1320 | K3: 2024.1-6
A4: 2 | B4: 杨玉良 | C4: 老庄子公社农机站 | D4: 男 | E4: 老庄子镇沙雾庄村 | F4: 80.10--85.12 | G4: 6 | H4: 120 | I4: 6 | J4: =H4*I4 -> 720 | K4: 2024.1-6
A5: 3 | B5: 王胜海 | C5: 老庄子公社农机站 | D5: 男 | E5: 老庄子镇沙雾庄村 | F5: 70.3--85.12 | G5: 16 | H5: 320 | I5: 6 | J5: =H5*I5 -> 1920 | K5: 2024.1-6
A6: 4 | B6: 尹贺禄 | C6: 老庄子公社农机站 | D6: 男 | E6: 老庄子镇沙雾庄村 | F6: 81.1-85.12 | G6: 5 | H6: 100 | I6: 6 | J6: =H6*I6 -> 600 | K6: 2024.1-6
A7: 5 | B7: 张全 | C7: 老庄子公社农机站 | D7: 男 | E7: 老庄子镇沙雾庄村 | F7: 75.9--85.12 | G7: 11 | H7: 220 | I7: 6 | J7: =H7*I7 -> 1320 | K7: 2024.1-6
A8: 6 | B8: 贾振江 | C8: 老庄子公社农机站 | D8: 男 | E8: 老庄子镇陈家庄村 | F8: 70.9--85.6 | G8: 15 | H8: 300 | I8: 6 | J8: 1800 | K8: 2024.1-6
A9: 7 | B9: 王振东 | C9: 老庄子公社农机站 | D9: 男 | E9: 老庄子镇陈家庄村 | F9: 78.12--85.12 | G9: 8 | H9: 160 | I9: 6 | J9: 960 | K9: 2024.1-6
A10: 8 | B10: 荣振齐 | C10: 老庄子公社农机站 | D10: 男 | E10: 老庄子镇陈家庄村 | F10: 81.5--85.12 | G10: 5 | H10: =G10*20 -> 100 | I10: 6 | J10: 600 | K10: 2024.1-6
A11: 9 | B11: 王国利 | C11: 老庄子公社农机站 | D11: 男 | E11: 老庄子镇陈家庄村 | F11: 76.4--85.12 | G11: 10 | H11: 200 | I11: 6 | J11: 1200 | K11: 2024.1-6
A12: 10 | B12: 张振国 | C12: 老庄子公社农机站 | D12: 男 | E12: 老庄子镇陈家庄村 | F12: 79.5--85.5 | G12: 7 | H12: 140 | I12: 6 | J12: 840 | K12: 2024.1-6
A13: 11 | B13: 董清朝 | C13: 老庄子公社农机站 | D13: 男 | E13: 老庄子镇魏庄子村 | F13: 76.3--85.12 | G13: 10 | H13: 200 | I13: 6 | J13: 1200 | K13: 2024.1-6
A14: 12 | B14: 王春开 | C14: 老庄子公社农机站 | D14: 男 | E14: 老庄子镇魏庄子村 | F14: 71.6--84.8 | G14: 14 | H14: 280 | I14: 6 | J14: 1680 | K14: 2024.1-6
A15: 13 | B15: 狄占海 | C15: 老庄子公社农机站 | D15: 男 | E15: 老庄子镇魏庄子村 | F15: 76.8--85.12 | G15: 10 | H15: 200 | I15: 6 | J15: 1200 | K15: 2024.1-6
A16: 14 | B16: 王建兴 | C16: 老庄子公社农机站 | D16: 男 | E16: 老庄子镇魏庄子村 | F16: 80.3--85.12 | G16: 6 | H16: 120 | I16: 6 | J16: 720 | K16: 2024.1-6
A17: 15 | B17: 韩连平 | C17: 老庄子公社农机站 | D17: 男 | E17: 老庄子镇魏庄子村 | F17: 75.3--85.12 | G17: 11 | H17: 220 | I17: 6 | J17: 1320 | K17: 2024.1-6
A18: 16 | B18: 李广文 | C18: 老庄子公社农机站 | D18: 男 | E18: 老庄子镇新村 | F18: 76.4--85.12 | G18: 10 | H18: 200 | I18: 6 | J18: 1200 | K18: 2024.1-6
A19: 17 | B19: 侯保申 | C19: 老庄子公社农机站 | D19: 男 | E19: 老庄子镇新村 | F19: 77.3--85.12 | G19: 9 | H19: 180 | I19: 6 | J19: 1080 | K19: 2024.1-6
A20: 18 | B20: 吴振洲 | C20: 毛家坨公社农机站 | D20: 男 | E20: 老庄子镇前冯各庄村 | F20: 78.3--85.12 | G20: 8 | H20: 160 | I20: 6 | J20: 960 | K20: 2024.1-6
A21: 19 | B21: 王贺 | C21: 毛家坨公社农机站 | D21: 男 | E21: 老庄子镇前冯各庄村 | F21: 77.5--85.12 | G21: 9 | H21: 180 | I21: 6 | J21: 1080 | K21: 2024.1-6
A22: 20 | B22: 姜德存 | C22: 毛家坨公社农机站 | D22: 男 | E22: 老庄子镇后冯各庄村 | F22: 78.8--85.12 | G22: 8 | H22: =G22*20 -> 160 | I22: 6 | J22: 960 | K22: 2024.1-6
A23: 21 | B23: 周静春 | C23: 毛家坨公社农机站 | D23: 男 | E23: 老庄子镇后冯各庄村 | F23: 74.4--85.12 | G23: 12 | H23: 240 | I23: 6 | J23: 1440 | K23: 2024.1-6
A24: 22 | B24: 董双喜 | C24: 毛家坨公社农机站 | D24: 男 | E24: 老庄子镇后冯各庄村 | F24: 76.5--85.12 | G24: 10 | H24: 200 | I24: 6 | J24: 1200 | K24: 2024.1-6
A25: 23 | B25: 董福平 | C25: 毛家坨公社农机站 | D25: 男 | E25: 老庄子镇后冯各庄村 | F25: 75.6--85.12 | G25: 11 | H25: 220 | I25: 6 | J25: 1320 | K25: 2024.1-6
A26: 24 | B26: 田久贵 | C26: 小城子公社农机站 | D26: 男 | E26: 老庄子镇党家庄村 | F26: 73.4--85.12 | G26: 13 | H26: 260 | I26: 6 | J26: 1560 | K26: 2024.1-6
A27: 25 | B27: 党继锁 | C27: 小城子公社农机站 | D27: 男 | E27: 老庄子镇党家庄村 | F27: 79.5--83.11 | G27: 5 | H27: 100 | I27: 6 | J27: 600 | K27: 2024.1-6
A28: 26 | B28: 柳福顺 | C28: 小城子公社农机站 | D28: 男 | E28: 老庄子镇党家庄村 | F28: 74.3--85.12 | G28: 12 | H28: 240 | I28: 6 | J28: 1440 | K28: 2024.1-6
A29: 27 | B29: 田长兴 | C29: 小城子公社农机站 | D29: 男 | E29: 老庄子镇党家庄村 | F29: 76.3--84.11 | G29: 9 | H29: 180 | I29: 6 | J29: 1080 | K29: 2024.1-6
A30: 28 | B30: 赵生儒 | C30: 小城子公社农机站 | D30: 男 | E30: 老庄子镇夏屋村 | F30: 73.5--82.11 | G30: 10 | H30: 200 | I30: 6 | J30: 1200 | K30: 2024.1-6
A31: 29 | B31: 赵生奎 | C31: 小城子公社农机站 | D31: 男 | E31: 老庄子镇夏屋村 | F31: 73.12--85.12 | G31: 13 | H31: 260 | I31: 6 | J31: 1560 | K31: 2024.1-6
A32: 30 | B32: 赵振双 | C32: 小城子公社农机站 | D32: 男 | E32: 老庄子镇夏屋村 | F32: 74.2--85.12 | G32: 12 | H32: 240 | I32: 6 | J32: 1440 | K32: 2024.1-6
A33: 31 | B33: 赵振奎 | C33: 小城子公社农机站 | D33: 男 | E33: 老庄子镇夏屋村 | F33: 75.2--82.12 | G33: 8 | H33: 160 | I33: 6 | J33: 960 | K33: 2024.1-6
A34: 32 | B34: 赵金科 | C34: 小城子公社农机站 | D34: 男 | E34: 老庄子镇瓦房庄村 | F34: 74.2--85.12 | G34: 12 | H34: 240 | I34: 6 | J34: 1440 | K34: 2024.1-6
A35: 33 | B35: 刘汉青 | C35: 小城子公社农机站 | D35: 男 | E35: 老庄子镇瓦房庄村 | F35: 77.2--85.12 | G35: 9 | H35: 180 | I35: 6 | J35: 1080 | K35: 2024.1-6
A36: 34 | B36: 陈合仁 | C36: 小城子公社农机站 | D36: 男 | E36: 老庄子镇瓦房庄村 | F36: 76.4--84.11 | G36: 9 | H36: 180 | I36: 6 | J36: 1080 | K36: 2024.1-6
A37: 35 | B37: 崔万岩 | C37: 小城子公社农机站 | D37: 男 | E37: 老庄子镇瓦房庄村 | F37: 74.10--84.9 | G37: 10 | H37: 200 | I37: 6 | J37: 1200 | K37: 2024.1-6
A38: 36 | B38: 陈计成 | C38: 小城子公社农机站 | D38: 男 | E38: 老庄子镇瓦房庄村 | F38: 73.6--84.6 | G38: 12 | H38: 240 | I38: 6 | J38: 1440 | K38: 2024.1-6
A39: 37 | B39: 张久华 | C39: 小城子公社农机站 | D39: 男 | E39: 老庄子镇瓦房庄村 | F39: 78.10--85.12 | G39: 8 | H39: =G39*20 -> 160 | I39: 6 | J39: =H39*I39 -> 960 | K39: 2024.1-6
A40: 38 | B40: 何守柱 | C40: 小城子公社农机站 | D40: 男 | E40: 老庄子镇李官屯村 | F40: 74.3--85.12 | G40: 12 | H40: 240 | I40: 6 | J40: 1440 | K40: 2024.1-6
A41: 39 | B41: 李应山 | C41: 小城子公社农机站 | D41: 男 | E41: 老庄子镇李官屯村 | F41: 74.2--84.12 | G41: 11 | H41: 220 | I41: 6 | J41: 1320 | K41: 2024.1-6
A42: 40 | B42: 李应才 | C42: 小城子公社农机站 | D42: 男 | E42: 老庄子镇李官屯村 | F42: 77.11--84.11 | G42: 8 | H42: 160 | I42: 6 | J42: 960 | K42: 2024.1-6
A43: 41 | B43: 李百云 | C43: 小城子公社农机站 | D43: 男 | E43: 老庄子镇李官屯村 | F43: 78.3--85.12 | G43: 8 | H43: 160 | I43: 6 | J43: 960 | K43: 2024.1-6
A44: 42 | B44: 李贺彩 | C44: 小城子公社农机站 | D44: 男 | E44: 老庄子镇李官屯村 | F44: 76.3--84.11 | G44: 9 | H44: 180 | I44: 6 | J44: 1080 | K44: 2024.1-6
A45: 43 | B45: 李昌润 | C45: 小城子公社农机站 | D45: 男 | E45: 老庄子镇李官屯村 | F45: 76.6--85.12 | G45: 10 | H45: 200 | I45: 6 | J45: 1200 | K45: 2024.1-6
A46: 44 | B46: 李柏金 | C46: 小城子公社农机站 | D46: 男 | E46: 老庄子镇李官屯村 | F46: 75.2--85.12 | G46: 11 | H46: 220 | I46: 6 | J46: 1320 | K46: 2024.1-6
A47: 45 | B47: 张凤阁 | C47: 老庄子公社农机站 | D47: 男 | E47: 老庄子镇周凤庄村 | F47: 76.9--85.12 | G47: 10 | H47: 200 | I47: 6 | J47: 1200 | K47: 2024.1-6
A48: 46 | B48: 常金全 | C48: 老庄子公社农机站 | D48: 男 | E48: 老庄子镇周凤庄村 | F48: 73.9--85.12 | G48: 13 | H48: 260 | I48: 6 | J48: 1560 | K48: 2024.1-6
A49: 47 | B49: 刘景维 | C49: 老庄子公社农机站 | D49: 男 | E49: 老庄子镇七王庄村 | F49: 76.1--85.12 | G49: 10 | H49: 200 | I49: 6 | J49: 1200 | K49: 2024.1-6
A50: 48 | B50: 高振良 | C50: 老庄子公社农机站 | D50: 男 | E50: 老庄子镇七王庄村 | F50: 77.11--85.12 | G50: 9 | H50: 180 | I50: 6 | J50: 1080 | K50: 2024.1-6
A51: 49 | B51: 徐宝有 | C51: 老庄子公社农机站 | D51: 男 | E51: 老庄子镇七王庄村 | F51: 79.3--85.12 | G51: 7 | H51: 140 | I51: 6 | J51: 840 | K51: 2024.1-6
A52: 50 | B52: 安文来 | C52: 老庄子公社农机站 | D52: 男 | E52: 老庄子镇南王庄村 | F52: 71.3--85.12 | G52: 15 | H52: 300 | I52: 6 | J52: 1800 | K52: 2024.1-6
A53: 51 | B53: 殷晓岩 | C53: 老庄子公社农机站 | D53: 男 | E53: 老庄子镇南王庄村 | F53: 81.2--85.12 | G53: 5 | H53: 100 | I53: 6 | J53: 600 | K53: 2024.1-6
A54: 52 | B54: 李福来 | C54: 老庄子公社农机站 | D54: 男 | E54: 老庄子镇南王庄村 | F54: 76.9--85.10 | G54: 10 | H54: 200 | I54: 6 | J54: 1200 | K54: 2024.1-6
A55: 53 | B55: 安殿国 | C55: 老庄子公社农机站 | D55: 男 | E55: 老庄子镇南王庄村 | F55: 78.3--85.12 | G55: 8 | H55: 160 | I55: 6 | J55: 960 | K55: 2024.1-6
A56: 54 | B56: 李春明 | C56: 老庄子公社农机站 | D56: 男 | E56: 老庄子镇老庄子村 | F56: 71.3--85.12 | G56: 15 | H56: 300 | I56: 6 | J56: 1800 | K56: 2024.1-6
A57: 55 | B57: 常贺增 | C57: 老庄子公社农机站 | D57: 男 | E57: 老庄子镇老庄子村 | F57: 80.8--85.12 | G57: 6 | H57: 120 | I57: 6 | J57: 720 | K57: 2024.1-6
A58: 56 | B58: 宋子良 | C58: 老庄子公社农机站 | D58: 男 | E58: 老庄子镇老庄子村 | F58: 74.11--85.12 | G58: 12 | H58: 240 | I58: 6 | J58: 1440 | K58: 2024.1-6
A59: 57 | B59: 张玉强 | C59: 老庄子公社农机站 | D59: 男 | E59: 老庄子镇老庄子村 | F59: 69.9--85.12 | G59: 17 | H59: 340 | I59: 6 | J59: 2040 | K59: 2024.1-6
A60: 58 | B60: 王守江 | C60: 小城子公社农机站 | D60: 男 | E60: 老庄子镇小城子村 | F60: 74.3--85.12 | G60: 12 | H60: =G60*20 -> 240 | I60: 6 | J60: 1440 | K60: 2024.1-6
A61: 59 | B61: 韩宝良 | C61: 小城子公社农机站 | D61: 男 | E61: 老庄子镇大树韩庄子村 | F61: 73.4--83.11 | G61: 11 | H61: 220 | I61: 6 | J61: 1320 | K61: 2024.1-6
A62: 60 | B62: 冯继文 | C62: 小城子公社农机站 | D62: 男 | E62: 老庄子镇大树韩庄子村 | F62: 80.2--85.12 | G62: 6 | H62: 120 | I62: 6 | J62: 720 | K62: 2024.1-6
A63: 61 | B63: 陈树全 | C63: 毛家坨农机站 | D63: 男 | E63: 老庄子镇杨信庄村 | F63: 74.11--84.11 | G63: 11 | H63: 220 | I63: 6 | J63: 1320 | K63: 2024.1-6
A64: 合计 | J64: =SUM(J3:J63) -> 73200
A65: 唐山高新区三女河办事处2024年1--6月年满60周岁农机员生活补助公示表
A66: 序号 | B66: 姓名 | C66: 原工作单位 | D66: 性别 | E66: 户口所在地（镇、村） | F66: 公益服务认定时间 | G66: 公益服务认定年限 | H66: 月补助金额（元） | I66: 补贴月数（个） | J66: 补助总金额（元） | K66: 补助时间段（月） | L66: 备注
A67: 1 | B67: 裴玉阁 | C67: 唐山市丰润县三女河公社农机站 | D67: 男 | E67: 丰润区石各庄镇三女河村 | F67: 81.3--85.12 | G67: 5 | H67: =G67*20 -> 100 | I67: 6 | J67: =H67*I67 -> 600 | K67: 2024.1-6
A68: 2 | B68: 乔文申 | C68: 唐山市丰润县三女河公社农机站 | D68: 男 | E68: 丰润区石各庄镇三女河村 | F68: 81.3--85.12 | G68: 5 | H68: 100 | I68: 2 | J68: =H68*I68 -> 200 | K68: 2024.1-2 | L68: 于2024年2月3日去世
A69: 3 | B69: 罗仕玉 | C69: 唐山市丰润县老庄子镇毛家坨公社农机站 | D69: 男 | E69: 丰润区老庄子镇毛三村 | F69: 76.10--85.12 | G69: 10 | H69: 200 | I69: 6 | J69: 1200 | K69: 2024.1-6
A70: 4 | B70: 姚玉山 | C70: 唐山市丰润县老庄子镇毛家坨公社农机站 | D70: 男 | E70: 丰润区老庄子镇白树庄 | F70: 75.11--85.12 | G70: 11 | H70: 220 | I70: 6 | J70: 1320 | K70: 2024.1-6
A71: 5 | B71: 张占国 | C71: 唐山市丰润县老庄子镇毛家坨公社农机站 | D71: 男 | E71: 丰润区老庄子镇毛四村 | F71: 77.3--83.6 | G71: 7 | H71: 140 | I71: 6 | J71: 840 | K71: 2024.1-6
A72: 6 | B72: 张贵林 | C72: 唐山市丰润县老庄子镇毛家坨公社农机站 | D72: 男 | E72: 丰润区老庄子镇毛三村 | F72: 77.8--85.12 | G72: 9 | H72: 180 | I72: 6 | J72: 1080 | K72: 2024.1-6
A73: 7 | B73: 陈庆台 | C73: 唐山市丰润县老庄子镇毛家坨公社农机站 | D73: 男 | E73: 丰润区老庄子镇崔家屯村 | F73: 78.2--85.12 | G73: 8 | H73: 160 | I73: 6 | J73: 960 | K73: 2024.1-6
A74: 8 | B74: 杨贵全 | C74: 唐山市丰润县老庄子镇毛家坨公社农机站 | D74: 男 | E74: 丰润区老庄子镇毛四村 | F74: 76.10--85.12 | G74: 10 | H74: 200 | I74: 6 | J74: 1200 | K74: 2024.1-6
A75: 9 | B75: 宋国会 | C75: 唐山市丰润县老庄子镇毛家坨公社农机站 | D75: 男 | E75: 丰润区老庄子镇范家坨村 | F75: 76.10--85.12 | G75: 10 | H75: 200 | I75: 6 | J75: 1200 | K75: 2024.1-6
A76: 10 | B76: 兰友芳 | C76: 唐山市丰润县老庄子镇毛家坨公社农机站 | D76: 男 | E76: 丰润区老庄子镇毛二村 | F76: 75.5--85.12 | G76: 11 | H76: 220 | I76: 6 | J76: 1320 | K76: 2024.1-6
A77: 11 | B77: 苗印才 | C77: 唐山市丰润县三女河公社农机管理站 | D77: 男 | E77: 丰润区石各庄镇高庄子村 | F77: 74.11--85.12 | G77: 12 | H77: 240 | I77: 6 | J77: 1440 | K77: 2024.1-6
A78: 12 | B78: 张贵申 | C78: 唐山市丰润县老庄子镇毛家坨公社农机站 | D78: 男 | E78: 丰润区老庄子镇白树庄 | F78: 76.8--85.12 | G78: 10 | H78: 200 | I78: 6 | J78: 1200 | K78: 2024.1-6
A79: 13 | B79: 刘金仲 | C79: 唐山市丰润县老庄子镇毛家坨公社农机站 | D79: 男 | E79: 丰润区老庄子镇姚家庄村 | F79: 78.8--85.12 | G79: 8 | H79: 160 | I79: 6 | J79: 960 | K79: 2024.1-6
A80: 14 | B80: 武志成 | C80: 唐山市丰润县老庄子镇毛家坨公社农机站 | D80: 男 | E80: 丰润区老庄子镇崔家屯村 | F80: 75.11--85.12 | G80: 11 | H80: 220 | I80: 6 | J80: 1320 | K80: 2024.1-6
A81: 15 | B81: 张秋才 | C81: 唐山市丰润县老庄子镇毛家坨公社农机站 | D81: 男 | E81: 丰润区老庄子镇姚家庄村 | F81: 74.9--85.12 | G81: 12 | H81: 240 | I81: 6 | J81: 1440 | K81: 2024.1-6
A82: 16 | B82: 徐文生 | C82: 唐山市丰润县老庄子镇毛家坨公社农机站 | D82: 男 | E82: 丰润区老庄子镇毛三村 | F82: 75.8--85.12 | G82: 11 | H82: 220 | I82: 6 | J82: 1320 | K82: 2024.1-6
A83: 17 | B83: 祖连国 | C83: 唐山市丰润县老庄子镇毛家坨公社农机站 | D83: 男 | E83: 丰润区老庄子镇范家坨村 | F83: 75.9--85.12 | G83: 11 | H83: 220 | I83: 6 | J83: 1320 | K83: 2024.1-6
A84: 18 | B84: 徐宝玉 | C84: 唐山市丰润县老庄子镇毛家坨公社农机站 | D84: 男 | E84: 丰润区老庄子镇安家庄村 | F84: 76.10--85.12 | G84: 10 | H84: 200 | I84: 6 | J84: 1200 | K84: 2024.1-6
A85: 19 | B85: 庄宝成 | C85: 唐山市丰润县老庄子镇毛家坨公社农机站 | D85: 男 | E85: 丰润区老庄子镇崔家屯村 | F85: 76.7--85.12 | G85: 10 | H85: 200 | I85: 6 | J85: 1200 | K85: 2024.1-6
A86: 20 | B86: 徐长 | C86: 唐山市丰润县老庄子镇毛家坨公社农机站 | D86: 男 | E86: 丰润区老庄子镇范家坨村 | F86: 76.10--83.12 | G86: 8 | H86: 160 | I86: 6 | J86: 960 | K86: 2024.1-6
A87: 21 | B87: 郭建忠 | C87: 唐山市丰润县老庄子镇毛家坨公社农机站 | D87: 男 | E87: 丰润区老庄子镇崔家屯村 | F87: 78.3--83.8 | G87: 6 | H87: 120 | I87: 6 | J87: 720 | K87: 2024.1-6
A88: 22 | B88: 张德清 | C88: 唐山市丰润县老庄子镇毛家坨公社农机站 | D88: 男 | E88: 丰润区老庄子镇毛一村 | F88: 75.1--85.12 | G88: 11 | H88: 220 | I88: 6 | J88: 1320 | K88: 2024.1-6
A89: 23 | B89: 赵庆贵 | C89: 唐山市丰润县三女河公社农机站 | D89: 男 | E89: 丰润区石各庄镇方子里村 | F89: 74.12--85.12 | G89: 12 | H89: 240 | I89: 6 | J89: 1440 | K89: 2024.1-6
A90: 24 | B90: 邱玉合 | C90: 唐山市丰润县三女河公社农机站 | D90: 男 | E90: 丰润区石各庄镇方子里村 | F90: 75.9--85.12 | G90: 11 | H90: 220 | I90: 6 | J90: 1320 | K90: 2024.1-6
A91: 25 | B91: 邱天明 | C91: 唐山市丰润县三女河公社农机站 | D91: 男 | E91: 丰润区石各庄镇韩家街村 | F91: 76.4--85.12 | G91: 10 | H91: 200 | I91: 6 | J91: 1200 | K91: 2024.1-6
A92: 26 | B92: 刘得义 | C92: 唐山市丰润县三女河公社农机站 | D92: 男 | E92: 丰润区石各庄镇韩家街村 | F92: 75.3--85.12 | G92: 11 | H92: =G92*20 -> 220 | I92: 6 | J92: 1320 | K92: 2024.1-6
A93: 27 | B93: 刘宝山 | C93: 唐山市丰润县三女河公社农机站 | D93: 男 | E93: 丰润区石各庄镇邵家街村 | F93: 75.9--85.12 | G93: 11 | H93: 220 | I93: 6 | J93: 1320 | K93: 2024.1-6
A94: 28 | B94: 王海成(原乡镇、县已认定） | C94: 河北省秦皇岛市青龙满族自治县娄子石公社农机站 | D94: 男 | E94: 河北省秦皇岛青龙娄子石乡齐集口村 | F94: 71.3--91.6 | G94: 20 | H94: 400 | I94: 6 | J94: 2400 | K94: 2024.1-6
A95: 29 | B95: 周铁厂 | C95: 唐山市丰润县三女河公社农机站 | D95: 男 | E95: 丰润区石各庄镇三女河村 | F95: 78.3--85.12 | G95: 8 | H95: 160 | I95: 6 | J95: 960 | K95: 2024.1-6
A96: 30 | B96: 王振永 | C96: 唐山市丰润县三女河公社农机站 | D96: 男 | E96: 丰润区石各庄镇三女河村 | F96: 79.4--85.12 | G96: 7 | H96: 140 | I96: 6 | J96: 840 | K96: 2024.1-6
A97: 31 | B97: 张俊如 | C97: 唐山市丰润县三女河公社农机站 | D97: 男 | E97: 丰润区石各庄镇三女河村 | F97: 78.3--85.12 | G97: 8 | H97: 160 | I97: 6 | J97: 960 | K97: 2024.1-6
A98: 32 | B98: 张国永 | C98: 唐山市丰润县三女河公社农机站 | D98: 男 | E98: 丰润区石各庄镇三女河村 | F98: 75.3--85.12 | G98: 11 | H98: 220 | I98: 6 | J98: 1320 | K98: 2024.1-6
A99: 33 | B99: 韩俊福 | C99: 唐山市丰润县三女河公社农机站 | D99: 男 | E99: 丰润区石各庄镇高庄子村 | F99: 75.3--85.12 | G99: 11 | H99: 220 | I99: 6 | J99: 1320 | K99: 2024.1-6
A100: 34 | B100: 韩青 | C100: 唐山市丰润县三女河公社农机站 | D100: 男 | E100: 丰润区石各庄镇高庄子村 | F100: 74.12--85.12 | G100: 12 | H100: 240 | I100: 6 | J100: 1440 | K100: 2024.1-6
A101: 35 | B101: 党恩召 | C101: 唐山市丰润县三女河公社农机站 | D101: 男 | E101: 丰润区石各庄镇三女河村 | F101: 75.7--85.12 | G101: 11 | H101: 220 | I101: 6 | J101: 1320 | K101: 2024.1-6
A102: 36 | B102: 张增 | C102: 唐山市丰润县三女河公社农机站 | D102: 男 | E102: 丰润区石各庄镇黄花港村 | F102: 75.3--85.12 | G102: 11 | H102: 220 | I102: 6 | J102: 1320 | K102: 2024.1-6
A103: 37 | B103: 马玉常 | C103: 唐山市丰润县三女河公社农机站 | D103: 男 | E103: 丰润区石各庄镇黄花港村 | F103: 76.4--85.12 | G103: 10 | H103: 200 | I103: 6 | J103: 1200 | K103: 2024.1-6
A104: 38 | B104: 刘少保 | C104: 唐山市丰润县三女河公社农机站 | D104: 男 | E104: 丰润区石各庄镇黄花港村 | F104: 74.12--85.12 | G104: 12 | H104: 240 | I104: 6 | J104: 1440 | K104: 2024.1-6
A105: 39 | B105: 白井国 | C105: 唐山市丰润县三女河公社农机站 | D105: 男 | E105: 丰润区石各庄镇黄花港村 | F105: 78.3--85.12 | G105: 8 | H105: 160 | I105: 6 | J105: 960 | K105: 2024.1-6
A106: 合计 | J106: =SUM(J67:J105) -> 46400
A107: 唐山高新区庆北办2024年1--6月年满60周岁农机员生活补助公示表
A108: 序号 | B108: 姓名 | C108: 原工作单位 | D108: 性别 | E108: 户口所在地（镇办、村） | F108: 公益服务认定时间 | G108: 公益服务认定年限 | H108: 月补助金额（元） | I108: 补贴月数（个） | J108: 补助总金额（元） | K108: 补助时间段（月） | L108: 备注
A109: 1 | B109: 刘福青 | C109: 郑庄子乡农机站 | D109: 男 | E109: 河北省唐山市高新区梁各庄 | F109: 78.3--85.12 | G109: 8 | H109: =G109*20 -> 160 | I109: 6 | J109: =H109*I109 -> 960 | K109: 2024.1-6
A110: 2 | B110: 杜全广 | C110: 郑庄子乡农机站 | D110: 男 | E110: 河北省唐山市高新区梁各庄 | F110: 78.3--85.12 | G110: 8 | H110: 160 | I110: 6 | J110: =H110*I110 -> 960 | K110: 2024.1-6
A111: 3 | B111: 杜广文 | C111: 郑庄子乡农机站 | D111: 男 | E111: 河北省唐山市高新区梁各庄 | F111: 78.3--85.12 | G111: 8 | H111: 160 | I111: 6 | J111: =H111*I111 -> 960 | K111: 2024.1-6
A112: 4 | B112: 孙丙红 | C112: 新庄子农机站 | D112: 女 | E112: 河北省唐山市高新区三益庄 | F112: 76.8--85.12 | G112: 10 | H112: 200 | I112: 6 | J112: =H112*I112 -> 1200 | K112: 2024.1-6
A113: 5 | B113: 杨万金 | C113: 郑庄子乡农机站 | D113: 男 | E113: 河北省唐山市高新区前白寺口 | F113: 78.3--85.12 | G113: 8 | H113: 160 | I113: 6 | J113: =H113*I113 -> 960 | K113: 2024.1-6
A114: 6 | B114: 阚立春 | C114: 老庄子农机站 | D114: 男 | E114: 河北省唐山市高新区詹官屯 | F114: 74.7--85.12 | G114: 12 | H114: 240 | I114: 6 | J114: =H114*I114 -> 1440 | K114: 2024.1-6
A115: 7 | B115: 鲁教江 | C115: 老庄子农机站 | D115: 男 | E115: 河北省唐山市高新区詹官屯 | F115: 69.10--85.12 | G115: 17 | H115: =G115*20 -> 340 | I115: 6 | J115: 2040 | K115: 2024.1-6
A116: 8 | B116: 罗文华 | C116: 老庄子农机站 | D116: 男 | E116: 河北省唐山市高新区詹官屯 | F116: 79.7--85.12 | G116: 7 | H116: 140 | I116: 3 | J116: 420 | K116: 2024.1-3 | L116: 2024.3.6去世
A117: 9 | B117: 陈连友 | C117: 老庄子农机站 | D117: 男 | E117: 河北省唐山市高新区詹官屯 | F117: 77.5--85.12 | G117: 9 | H117: 180 | I117: 6 | J117: 1080 | K117: 2024.1-6
A118: 10 | B118: 秦恩双 | C118: 郑庄子乡农机站 | D118: 男 | E118: 河北省唐山市高新区北白寺口 | F118: 78.3--85.12 | G118: 8 | H118: 160 | I118: 6 | J118: 960 | K118: 2024.1-6
A119: 11 | B119: 王连江 | C119: 郑庄子乡农机站 | D119: 男 | E119: 河北省唐山市高新区中白寺口 | F119: 78.3--85.12 | G119: 8 | H119: 160 | I119: 6 | J119: 960 | K119: 2024.1-6
A120: 12 | B120: 杜久余 | C120: 郑庄子乡农机站 | D120: 男 | E120: 河北省唐山市高新区刘家洼 | F120: 79.12--85.12 | G120: 7 | H120: 140 | I120: 6 | J120: 840 | K120: 2024.1-6
A121: 13 | B121: 杜久会 | C121: 郑庄子乡农机站 | D121: 男 | E121: 河北省唐山市高新区刘家洼 | F121: 79.12--85.12 | G121: 7 | H121: 140 | I121: 6 | J121: 840 | K121: 2024.1-6
A122: 14 | B122: 张富英 | C122: 郑庄子乡农机站 | D122: 女 | E122: 河北省唐山市高新区刘家洼 | F122: 79.12--85.12 | G122: 7 | H122: 140 | I122: 6 | J122: 840 | K122: 2024.1-6
A123: 15 | B123: 刘丽玲 | C123: 郑庄子乡农机站 | D123: 女 | E123: 河北省唐山市高新区刘家洼 | F123: 79.12--85.12 | G123: 7 | H123: 140 | I123: 6 | J123: 840 | K123: 2024.1-6
A124: 16 | B124: 宋福刚 | C124: 任各庄农机站 | D124: 男 | E124: 河北省唐山市高新区宋各庄 | F124: 76.8--85.12 | G124: 10 | H124: 200 | I124: 6 | J124: 1200 | K124: 2024.1-6
A125: 17 | B125: 宋宝存 | C125: 任各庄农机站 | D125: 男 | E125: 河北省唐山市高新区宋各庄 | F125: 80.9--85.12 | G125: 6 | H125: 120 | I125: 6 | J125: 720 | K125: 2024.1-6
A126: 18 | B126: 肖振林 | C126: 任各庄农机站 | D126: 男 | E126: 河北省唐山市高新区宋各庄 | F126: 81.8--85.12 | G126: 5 | H126: 100 | I126: 6 | J126: 600 | K126: 2024.1-6
A127: 19 | B127: 刘光忠 | C127: 任各庄农机站 | D127: 男 | E127: 河北省唐山市高新区宋各庄 | F127: 72.9--84.12 | G127: 13 | H127: 260 | I127: 6 | J127: 1560 | K127: 2024.1-6
A128: 20 | B128: 宋永良 | C128: 任各庄农机站 | D128: 男 | E128: 河北省唐山市高新区宋各庄 | F128: 76.8--85.12 | G128: 10 | H128: 200 | I128: 6 | J128: 1200 | K128: 2024.1-6
A129: 21 | B129: 刘茂庆 | C129: 任各庄农机站 | D129: 男 | E129: 河北省唐山市高新区宋各庄 | F129: 80.8--85.12 | G129: 6 | H129: 120 | I129: 6 | J129: 720 | K129: 2024.1-6
A130: 22 | B130: 刘瑞林 | C130: 郑庄子乡农机站 | D130: 男 | E130: 河北省唐山市高新区郑庄子 | F130: 79.11--84.4 | G130: 5 | H130: 100 | I130: 6 | J130: 600 | K130: 2024.1-6
A131: 23 | B131: 刘淑芬 | C131: 郑庄子乡农机站 | D131: 女 | E131: 河北省唐山市高新区郑庄子 | F131: 78.3--85.12 | G131: 8 | H131: 160 | I131: 6 | J131: 960 | K131: 2024.1-6
A132: 24 | B132: 刘立凤 | C132: 郑庄子乡农机站 | D132: 女 | E132: 河北省唐山市高新区郑庄子 | F132: 78.3--85.12 | G132: 8 | H132: 160 | I132: 6 | J132: 960 | K132: 2024.1-6
A133: 25 | B133: 窦素秋 | C133: 郑庄子乡农机站 | D133: 女 | E133: 河北省唐山市高新区梁各庄 | F133: 78.3--85.12 | G133: 8 | H133: 160 | I133: 6 | J133: 960 | K133: 2024.1-6
A134: 26 | B134: 张瑞芬 | C134: 丰润区姜家营农机站 | D134: 女 | E134: 河北省唐山市高新区刘家洼 | F134: 74.4-85.12 | G134: 11 | H134: 220 | I134: 6 | J134: 1320 | K134: 2024.1-6
A135: 合计 | J135: =SUM(J109:J134) -> 26100
A136: 唐山高新区街道办2024年1--6月年满60周岁农机员生活补助公示表
A137: 序号 | B137: 姓名 | C137: 原工作单位 | D137: 性别 | E137: 户口所在地（镇办、村） | F137: 公益服务认定时间 | G137: 公益服务认定年限 | H137: 月补助金额（元） | I137: 补贴月数（个） | J137: 补助总金额（元） | K137: 补助时间段（月） | L137: 备注
A138: 1 | B138: 王淑彩 | C138: 付家屯农机站 | D138: 女 | E138: 街道办付家屯村 | F138: 73.4--79.12 | G138: 7 | H138: =G138*20 -> 140 | I138: 6 | J138: =H138*I138 -> 840 | K138: 2024.1-6
A139: 2 | B139: 周连兴 | C139: 付家屯农机站 | D139: 男 | E139: 街道办新城子村 | F139: 77.3--81.6 | G139: 5 | H139: 100 | I139: 6 | J139: 600 | K139: 2024.1-6
A140: 3 | B140: 曹凤仲 | C140: 付家屯农机站 | D140: 男 | E140: 街道办新城子村 | F140: 69.9--85.5 | G140: 16 | H140: =G140*20 -> 320 | I140: 6 | J140: 1920 | K140: 2024.1-6
A141: 4 | B141: 张兆华 | C141: 付家屯农机站 | D141: 男 | E141: 街道办新城子村 | F141: 74.3--85.5 | G141: 12 | H141: =G141*20 -> 240 | I141: 6 | J141: 1440 | K141: 2024.1-6
A142: 5 | B142: 姜淑芹 | C142: 付家屯农机站 | D142: 女 | E142: 街道办新城子村 | F142: 73.4--85.5 | G142: 13 | H142: =G142*20 -> 260 | I142: 6 | J142: 1560 | K142: 2024.1-6
A143: 6 | B143: 刘铁平 | C143: 付家屯农机站 | D143: 男 | E143: 街道办新城子村 | F143: 78.4--85.12 | G143: 8 | H143: 160 | I143: 6 | J143: 960 | K143: 2024.1-6
A144: 7 | B144: 孙瑞忠 | C144: 任各庄农机站 | D144: 男 | E144: 街道办孙家庄村 | F144: 79.8--85.12 | G144: 7 | H144: =G144*20 -> 140 | I144: 6 | J144: 840 | K144: 2024.1-6
A145: 8 | B145: 朱学志 | C145: 任各庄农机站 | D145: 男 | E145: 街道办孙家庄村 | F145: 70.12--85.12 | G145: 16 | H145: =G145*20 -> 320 | I145: 6 | J145: 1920 | K145: 2024.1-6
A146: 9 | B146: 孙艳青 | C146: 任各庄农机站 | D146: 男 | E146: 河北省唐山市高新区孙家庄 | F146: 73.8--85.12 | G146: 13 | H146: =G146*20 -> 260 | I146: 6 | J146: 1560 | K146: 2024.1-6
A147: 10 | B147: 赵文亚 | C147: 付家屯农机站 | D147: 男 | E147: 街道办龙王庙村 | F147: 80.1--85.5 | G147: 6 | H147: 120 | I147: 6 | J147: 720 | K147: 2024.1-6
A148: 11 | B148: 赵文来 | C148: 付家屯农机站 | D148: 男 | E148: 街道办龙王庙村 | F148: 80.6--85.5 | G148: 5 | H148: 100 | I148: 6 | J148: 600 | K148: 2024.1-6
A149: 12 | B149: 庞文泽 | C149: 付家屯农机站 | D149: 男 | E149: 街道办龙王庙村 | F149: 75.8--85.5 | G149: 10 | H149: =G149*20 -> 200 | I149: 6 | J149: 1200 | K149: 2024.1-6
A150: 13 | B150: 刘焕新 | C150: 付家屯农机站 | D150: 男 | E150: 河北省唐山市高新区瓦官庄 | F150: 71.11--85.5 | G150: 14 | H150: =G150*20 -> 280 | I150: 6 | J150: =H150*I150 -> 1680 | K150: 2024.1-6
A151: 14 | B151: 李绍平 | C151: 付家屯农机站 | D151: 男 | E151: 街道办瓦官庄村 | F151: 77.3--85.5 | G151: 9 | H151: 180 | I151: 6 | J151: 1080 | K151: 2024.1-6
A152: 15 | B152: 李洪良 | C152: 付家屯农机站 | D152: 男 | E152: 街道办付家屯村 | F152: 77.4--85.5 | G152: 9 | H152: 180 | I152: 6 | J152: 1080 | K152: 2024.1-6
A153: 16 | B153: 庞文田 | C153: 付家屯农机站 | D153: 男 | E153: 街道办富庄村 | F153: 74.2--85.5 | G153: 12 | H153: =G153*20 -> 240 | I153: 6 | J153: 1440 | K153: 2024.1-6
A154: 17 | B154: 许文峰 | C154: 付家屯农机站 | D154: 男 | E154: 街道办许鄄子村 | F154: 82.10--85.12 | G154: 4 | H154: 80 | I154: 6 | J154: 480 | K154: 2024.1-6
A155: 18 | B155: 岳继存 | C155: 付家屯农机站 | D155: 男 | E155: 街道办王鄄子村 | F155: 71.1--85.5 | G155: 15 | H155: =G155*20 -> 300 | I155: 6 | J155: 1800 | K155: 2024.1-6
A156: 19 | B156: 王亚东 | C156: 付家屯农机站 | D156: 男 | E156: 街道办王鄄子村 | F156: 70.8--85.5 | G156: 15 | H156: =G156*20 -> 300 | I156: 6 | J156: 1800 | K156: 2024.1-6
A157: 20 | B157: 刘焕臣 | C157: 刘家营农机站 | D157: 男 | E157: 街道办富庄村 | F157: 76.10--85.12 | G157: 10 | H157: =G157*20 -> 200 | I157: 6 | J157: 1200 | K157: 2024.1-6
A158: 21 | B158: 梁玉霞 | C158: 新庄子农机站 | D158: 女 | E158: 街道办许鄄子村 | F158: 74.5--82.12 | G158: 9 | H158: =G158*20 -> 180 | I158: 6 | J158: 1080 | K158: 2024.1-6
A159: 合计 | J159: =SUM(J138:J158) -> 25800

Sheet 兽医
A1: 唐山高新区老庄子镇2024年1--6月年满60周岁基层兽医生活补助公示表
A2: 序号 | B2: 姓名 | C2: 原工作单位 | D2: 性别 | E2: 户口所在地（镇办、村） | F2: 公益服务认定时间 | G2: 公益服务认定年限 | H2: 月补助金额（元） | I2: 补贴月数（个） | J2: 补助总金额（元） | K2: 补助时间段（月） | L2: 备注
A3: 1 | B3: 董学恕 | C3: 老庄子兽医站毛家坨分站 | D3: 男 | E3: 老庄子镇后冯各庄村 | F3: 72.2--82.8 | G3: 11 | H3: =G3*20 -> 220 | I3: 6 | J3: =H3*I3 -> 1320 | K3: 2024.1-6
A4: 2 | B4: 赵贺成 | C4: 老庄子兽医站 （ 小城子） | D4: 男 | E4: 老庄子镇夏屋村 | F4: 70.9--82.11 | G4: 13 | H4: =G4*20 -> 260 | I4: 6 | J4: =H4*I4 -> 1560 | K4: 2024.1-6
A5: 3 | B5: 尹海 | C5: 原老庄子公社兽医站 | D5: 男 | E5: 老庄子镇沙雾庄村 | F5: 75.1--82.10 | G5: 8 | H5: 160 | I5: 6 | J5: 960 | K5: 2024.1-6
A6: 4 | B6: 郭希纯 | C6: 老庄子兽医站毛家坨分站 | D6: 男 | E6: 老庄子镇七王庄村 | F6: 72.2--82.10 | G6: 11 | H6: 220 | I6: 6 | J6: 1320 | K6: 2024.1-6
A7: 合计 | J7: =SUM(J3:J6) -> 5160
A8: 唐山高新区三女河办事处2024年1--6月年满60周岁基层兽医生活补助公示表
A9: 序号 | B9: 姓名 | C9: 原工作单位 | D9: 性别 | E9: 户口所在地（镇、村） | F9: 公益服务认定时间 | G9: 公益服务认定年限 | H9: 月补助金额（元） | I9: 补贴月数（个） | J9: 补助总金额（元） | K9: 补助时间段（月） | L9: 备注
A10: 1 | B10: 崔立华 | C10: 河北省唐山市丰润县三女河公社兽医站 | D10: 男 | E10: 丰润区石各庄镇邵家街村 | F10: 76.9--82.12 | G10: 7 | H10: =G10*20 -> 140 | I10: 6 | J10: =H10*I10 -> 840 | K10: 2024.1-6
A11: 2 | B11: 李及勇 | C11: 河北省唐山市丰润县三女河公社兽医站 | D11: 男 | E11: 丰润区石各庄镇韩家街村 | F11: 73.3--82.12 | G11: 10 | H11: =G11*20 -> 200 | I11: 6 | J11: =H11*I11 -> 1200 | K11: 2024.1-6
A12: 3 | B12: 张杰 | C12: 河北省唐山市丰润县三女河公社兽医站 | D12: 男 | E12: 丰润区石各庄镇方子里村 | F12: 73.11--82.12 | G12: 10 | H12: =G12*20 -> 200 | I12: 6 | J12: =H12*I12 -> 1200 | K12: 2024.1-6
A13: 4 | B13: 刘保禄 | C13: 河北省唐山市丰润县三女河公社兽医站 | D13: 男 | E13: 丰润区石各庄镇黄花港村 | F13: 71.2--82.12 | G13: 12 | H13: =G13*20 -> 240 | I13: 6 | J13: =H13*I13 -> 1440 | K13: 2024.1-6
A14: 合计 | J14: =SUM(J10:J13) -> 4680
A15: 唐山高新区庆北办2024年1--6月年满60周岁基层兽医生活补助公示表
A16: 序号 | B16: 姓名 | C16: 原工作单位 | D16: 性别 | E16: 户口所在地（镇办、村） | F16: 公益服务认定时间 | G16: 公益服务认定年限 | H16: 月补助金额（元） | I16: 补贴月数（个） | J16: 补助总金额（元） | K16: 补助时间段（月） | L16: 备注
A17: 1 | B17: 杜瑞荣 | C17: 郑庄子乡兽医站 | D17: 女 | E17: 河北省唐山市高新区刘家洼 | F17: 78.12--82.12 | G17: 5 | H17: 100 | I17: 6 | J17: =H17*I17 -> 600 | K17: 2024.1-6
A18: 合计 | J18: 600
A19: 唐山高新区街道办2024年1--6月年满60周岁基层兽医生活补助公示表
A20: 序号 | B20: 姓名 | C20: 原工作单位 | D20: 性别 | E20: 户口所在地（镇办、村） | F20: 公益服务认定时间 | G20: 公益服务认定年限 | H20: 月补助金额（元） | I20: 补贴月数（个） | J20: 补助总金额（元） | K20: 补助时间段（月） | L20: 备注
A21: 1 | B21: 姜连全 | C21: 付家屯兽医站 | D21: 男 | E21: 街道办龙王庙村 | F21: 77.3--82.12 | G21: 6 | H21: 120 | I21: 6 | J21: =H21*I21 -> 720 | K21: 2024.1-6
A22: 2 | B22: 庞振林 | C22: 付家屯兽医站 | D22: 男 | E22: 街道办瓦官庄村 | F22: 74.8--82.12 | G22: 9 | H22: =G22*20 -> 180 | I22: 6 | J22: =H22*I22 -> 1080 | K22: 2024.1-6
A23: 3 | B23: 田 禾 | C23: 付家屯兽医站 | D23: 男 | E23: 街道办龙王庙村 | F23: 68.4--82.12 | G23: 15 | H23: =G23*20 -> 300 | I23: 6 | J23: =H23*I23 -> 1800 | K23: 2024.1-6
A24: 4 | B24: 付文海 | C24: 付家屯兽医站 | D24: 男 | E24: 街道办付家屯村 | F24: 74.12--82.12 | G24: 9 | H24: 180 | I24: 6 | J24: 1080 | K24: 2024.1-6
A25: 合计 | J25: =SUM(J21:J24) -> 4680

Sheet 农技员
A1: 唐山高新区老庄子镇2024年1--6月年满60周岁农技员生生活补助公示表
A2: 序号 | B2: 姓名 | C2: 原工作单位 | D2: 性别 | E2: 户口所在地（镇办、村） | F2: 公益服务认定时间 | G2: 公益服务年限 | H2: 月补助金额（元） | I2: 补贴月数（个） | J2: 补助总金额（元） | K2: 补助时间段（月） | L2: 备注
A3: 1 | B3: 党希友 | C3: 老庄子镇农技站 | D3: 男 | E3: 老庄子镇党家庄村 | F3: 76.5--99.12 | G3: 20 | H3: =G3*20 -> 400 | I3: 6 | J3: =H3*I3 -> 2400 | K3: 2024.1-6
A4: 2 | B4: 赵长生 | C4: 老庄子镇农技站 | D4: 男 | E4: 老庄子镇后冯各庄村 | F4: 83.04--88.12 | G4: 6 | H4: =G4*20 -> 120 | I4: 6 | J4: =H4*I4 -> 720 | K4: 2024.1-6
A5: 合计 | J5: =SUM(J3:J4) -> 3120
A6: 唐山高新区三女河办事处2024年1--6月年满60周岁农技员生活补助公示表
A7: 序号 | B7: 姓名 | C7: 原工作单位 | D7: 性别 | E7: 户口所在地（镇、村） | F7: 公益服务认定时间 | G7: 公益服务年限 | H7: 月补助金额（元） | I7: 补贴月数（个） | J7: 补助总金额（元） | K7: 补助时间段（月） | L7: 备注
A8: 1 | B8: 张宝奇 | C8: 唐山市丰润县老庄子镇毛家坨公社农技站 | D8: 男 | E8: 丰润区老庄子镇姚家庄村 | F8: 78.9--99.12 | G8: 20 | H8: =G8*20 -> 400 | I8: 6 | J8: =H8*I8 -> 2400 | K8: 2024.1-6
A9: 2 | B9: 张尔章 | C9: 原毛家坨公社、毛家坨管理区农技服务站 | D9: 男 | E9: 丰润区老庄子镇毛一村 | F9: 78.9--98.9 | G9: 20 | H9: 400 | I9: 6 | J9: =H9*I9 -> 2400 | K9: 2024.1-6
A10: 3 | B10: 张贵安 | C10: 唐山市丰润县老庄子镇毛家坨公社农技站 | D10: 男 | E10: 丰润区老庄子镇毛三村 | F10: 72.2--92.3 | G10: 20 | H10: 400 | I10: 6 | J10: 2400 | K10: 2024.1-6
A11: 4 | B11: 韩建平 | C11: 唐山市丰润县三女河公社农技站 | D11: 女 | E11: 丰润区石各庄镇三女河村 | F11: 80.10--89.12 | G11: 10 | H11: 200 | I11: 6 | J11: 1200 | K11: 2024.1-6
A12: 5 | B12: 王守春 | C12: 唐山市丰润县三女河公社农技站 | D12: 男 | E12: 丰润区石各庄镇邵家街村 | F12: 71.1--86.6 | G12: 16 | H12: 320 | I12: 6 | J12: 1920 | K12: 2024.1-6
A13: 6 | B13: 张润甲 | C13: 唐山市丰润县老庄子镇毛家坨公社 | D13: 男 | E13: 丰润区老庄子镇崔家屯村 | F13: 75.5--82.6 | G13: 8 | H13: 160 | I13: 6 | J13: 960 | K13: 2024.1-6
A14: 7 | B14: 于景海 | C14: 唐山市丰润县老庄子镇毛家坨公社农技服务站 | D14: 男 | E14: 丰润区老庄子镇崔家屯村 | F14: 85.3--98.4 | G14: 14 | H14: 280 | I14: 6 | J14: 1680 | K14: 2024.1-6
A15: 8 | B15: 刘春平 | C15: 唐山市丰润县老庄子镇毛家坨公社农业技术推广站 | D15: 男 | E15: 丰润区老庄子镇崔家屯村 | F15: 78.12--98.10 | G15: 20 | H15: 400 | I15: 6 | J15: 2400 | K15: 2024.1-6
A16: 9 | B16: 王振生 | C16: 唐山市丰润县老庄子镇三女河乡农业技术服务站 | D16: 男 | E16: 丰润区石各庄镇三女河村 | F16: 90.4--99.12 | G16: 10 | H16: 200 | I16: 6 | J16: 1200 | K16: 2024.1-6
A17: 合计 | J17: =SUM(J8:J16) -> 16560
A18: 唐山高新区庆北办2024年1--6月年满60周岁农技员生活补助公示表
A19: 序号 | B19: 姓名 | C19: 原工作单位 | D19: 性别 | E19: 户口所在地（镇办、村） | F19: 公益服务认定时间 | G19: 公益服务年限 | H19: 月补助金额（元） | I19: 补贴月数（个） | J19: 补助总金额（元） | K19: 补助时间段（月） | L19: 备注
A20: 唐山高新区街道办2024年1--6月年满60周岁农技员生活补助公示表
A21: 序号 | B21: 姓名 | C21: 原工作单位 | D21: 性别 | E21: 户口所在地（镇办、村） | F21: 公益服务认定时间 | G21: 公益服务年限 | H21: 月补助金额（元） | I21: 补贴月数（个） | J21: 补助总金额（元） | K21: 补助时间段（月） | L21: 备注
A22: 1 | B22: 赵永建 | C22: 付家屯公社 | D22: 男 | E22: 街道办龙王庙村 | F22: 76.8--97.10 | G22: 20 | H22: =G22*20 -> 400 | I22: 6 | J22: =H22*I22 -> 2400 | K22: 2024.1-6
A23: 2 | B23: 李敬恩 | C23: 付家屯公社 | D23: 男 | E23: 街道办瓦官庄村 | F23: 79.10--94.11 | G23: 16 | H23: =G23*20 -> 320 | I23: 6 | J23: =H23*I23 -> 1920 | K23: 2024.1-6
A24: 合计 | J24: =SUM(J22:J23) -> 4320

Sheet 汇总
A1: 高新区2024年1--6月各镇办“三员”生活补助公示汇总表
A2: 项目 | B2: 农机员 | D2: 农技员 | F2: 基层兽医 | H2: 合计
B3: 人数 | C3: 补贴资金 | D3: 人数 | E3: 补贴资金 | F3: 人数 | G3: 补贴资金 | H3: 总人数 | I3: 总补贴资金
A4: 老庄子 | B4: 61 | C4: 73200 | D4: 2 | E4: 3120 | F4: 4 | G4: 5160 | H4: =B4+D4+F4 -> 67 | I4: 81480
A5: 三女河 | B5: 39 | C5: 46400 | D5: 9 | E5: 16560 | F5: 4 | G5: 4680 | H5: 52 | I5: 67640
A6: 庆北 | B6: 26 | C6: 26100 | D6: 0 | E6: 0 | F6: 1 | G6: 600 | H6: 27 | I6: 26700
A7: 街道办 | B7: 21 | C7: 25800 | D7: 2 | E7: 4320 | F7: 4 | G7: 4680 | H7: 27 | I7: 34800
A8: 合计 | B8: =SUM(B4:B7) -> 147 | C8: 171500 | D8: 13 | E8: 24000 | F8: 13 | G8: 15120 | H8: 173 | I8: 210620
